Workbook

Sheet Q1-4&6
B5: Potential national market: | D5: 350000000
B7: Test Markets
B8: Market Number | C8: Market Size | D8: Price | E8: Projected Yearly Sales (number of drives) | F8: Projected Yearly Sales (in K's) in National Mkt
B9: 1 | C9: 144900 | D9: 265.95 | E9: 570 | F9: =(E9/C9)*$D$5/1000 -> 1376.811594
B10: 2 | C10: 4627600 | D10: 276.95 | E10: 17178 | F10: 1299.226381
B11: 3 | C11: 1049800 | D11: 287.95 | E11: 3801 | F11: 1267.241379
B12: 4 | C12: 2946500 | D12: 299.95 | E12: 9941 | F12: 1180.841677
B13: 5 | C13: 5042300 | D13: 310.95 | E13: 15594 | F13: 1082.422704
B14: 6 | C14: 3617600 | D14: 321.95 | E14: 10859 | F14: 1050.599845
D15: y-values | F15: x-values
B16: Fixed Cost For The Year: | D16: 135000000 | E16: 135
B18: Variable Costs
B19: Quantity | D19: Cost per drive
B20: First: | C20: 800000 | D20: 160 | E20: 800 | F20: Batch size1
B21: Next: | C21: 400000 | D21: 128 | E21: 400 | F21: Batch size2
B22: Further: | D22: 72 | E22: 1200 | F22: sum of batch size 1&2
B24: coefficients of the quadratic function-8 decimal places(For Q1-4 & 6)
B25: a | C25: -5.349e-05
B26: b | C26: -0.03440302
B27: c | C27: 414.5344449 | G27: derivative = (a*3*q^2+b*2*q+c)/1000
B28: select q to include the x-intercept of D(q) | C28: use equation obtained from fitting a quadratic trend line(use a,b,c) | D28: R(q)=[q*D(q)]/1000] | E28: user defined COST function | G28: using derivative of aq^3+bq^2+cq | H28: using MR(q)=1000*R'(q) | I28: using nested IF function | J28: using MR(q)-MC(q)
B29: q | C29: D(q) | D29: R(q) | E29: C(q) | F29: P(q) | G29: R'(q) | H29: MR(q) | I29: MC(q) | J29: MP(q)
B30: 0 | C30: =$C$25*B30^2+$C$26*B30+$C$27 -> 414.5344449 | D30: =B30*C30/1000 -> 0 | E30: =COST(B30,$E$16,$E$20,$E$21,$D$20,$D$21,$D$22) -> 135 | F30: =D30-E30 -> -135
B31: 1 | C31: =$C$25*B31^2+$C$26*B31+$C$27 -> 414.4999884 | D31: =B31*C31/1000 -> 0.4144999884 | E31: =COST(B31,$E$16,$E$20,$E$21,$D$20,$D$21,$D$22) -> 135.16 | F31: =D31-E31 -> -134.7455
B32: 2 | C32: 414.4654249 | D32: 0.8289308498 | E32: 135.32 | F32: -134.4910692
B33: 3 | C33: 414.4307544 | D33: 1.243292263 | E33: 135.48 | F33: -134.2367077
B34: 4 | C34: 414.395977 | D34: 1.657583908 | E34: 135.64 | F34: -133.9824161
B35: 5 | C35: 414.3610926 | D35: 2.071805463 | E35: 135.8 | F35: -133.7281945
B36: 6 | C36: 414.3261011 | D36: 2.485956607 | E36: 135.96 | F36: -133.4740434
B37: 7 | C37: 414.2910028 | D37: 2.900037019 | E37: 136.12 | F37: -133.219963
B38: 8 | C38: 414.2557974 | D38: 3.314046379 | E38: 136.28 | F38: -132.9659536
B39: 9 | C39: 414.220485 | D39: 3.727984365 | E39: 136.44 | F39: -132.7120156
B40: 10 | C40: 414.1850657 | D40: 4.141850657 | E40: 136.6 | F40: -132.4581493
B41: 11 | C41: 414.1495394 | D41: 4.555644933 | E41: 136.76 | F41: -132.2043551
B42: 12 | C42: 414.1139061 | D42: 4.969366873 | E42: 136.92 | F42: -131.9506331
B43: 13 | C43: 414.0781658 | D43: 5.383016156 | E43: 137.08 | F43: -131.6969838
B44: 14 | C44: 414.0423186 | D44: 5.79659246 | E44: 137.24 | F44: -131.4434075
B45: 15 | C45: 414.0063644 | D45: 6.210095465 | E45: 137.4 | F45: -131.1899045
B46: 16 | C46: 413.9703032 | D46: 6.62352485 | E46: 137.56 | F46: -130.9364751
B47: 17 | C47: 413.934135 | D47: 7.036880294 | E47: 137.72 | F47: -130.6831197
B48: 18 | C48: 413.8978598 | D48: 7.450161476 | E48: 137.88 | F48: -130.4298385
B49: 19 | C49: 413.8614776 | D49: 7.863368075 | E49: 138.04 | F49: -130.1766319
B50: 20 | C50: 413.8249885 | D50: 8.27649977 | E50: 138.2 | F50: -129.9235002
B51: 21 | C51: 413.7883924 | D51: 8.68955624 | E51: 138.36 | F51: -129.6704438
B52: 22 | C52: 413.7516893 | D52: 9.102537165 | E52: 138.52 | F52: -129.4174628
B53: 23 | C53: 413.7148792 | D53: 9.515442223 | E53: 138.68 | F53: -129.1645578
B54: 24 | C54: 413.6779622 | D54: 9.928271093 | E54: 138.84 | F54: -128.9117289
B55: 25 | C55: 413.6409382 | D55: 10.34102345 | E55: 139 | F55: -128.6589765
B56: 26 | C56: 413.6038071 | D56: 10.75369899 | E56: 139.16 | F56: -128.406301
B57: 27 | C57: 413.5665692 | D57: 11.16629737 | E57: 139.32 | F57: -128.1537026
B58: 28 | C58: 413.5292242 | D58: 11.57881828 | E58: 139.48 | F58: -127.9011817
B59: 29 | C59: 413.4917722 | D59: 11.99126139 | E59: 139.64 | F59: -127.6487386
B60: 30 | C60: 413.4542133 | D60: 12.4036264 | E60: 139.8 | F60: -127.3963736
B61: 31 | C61: 413.4165474 | D61: 12.81591297 | E61: 139.96 | F61: -127.144087
B62: 32 | C62: 413.3787745 | D62: 13.22812078 | E62: 140.12 | F62: -126.8918792
B63: 33 | C63: 413.3408946 | D63: 13.64024952 | E63: 140.28 | F63: -126.6397505
B64: 34 | C64: 413.3029078 | D64: 14.05229886 | E64: 140.44 | F64: -126.3877011
B65: 35 | C65: 413.264814 | D65: 14.46426849 | E65: 140.6 | F65: -126.1357315
B66: 36 | C66: 413.2266131 | D66: 14.87615807 | E66: 140.76 | F66: -125.8838419
B67: 37 | C67: 413.1883054 | D67: 15.2879673 | E67: 140.92 | F67: -125.6320327
B68: 38 | C68: 413.1498906 | D68: 15.69969584 | E68: 141.08 | F68: -125.3803042
B69: 39 | C69: 413.1113688 | D69: 16.11134338 | E69: 141.24 | F69: -125.1286566
B70: 40 | C70: 413.0727401 | D70: 16.5229096 | E70: 141.4 | F70: -124.8770904
B71: 41 | C71: 413.0340044 | D71: 16.93439418 | E71: 141.56 | F71: -124.6256058
B72: 42 | C72: 412.9951617 | D72: 17.34579679 | E72: 141.72 | F72: -124.3742032
B73: 43 | C73: 412.956212 | D73: 17.75711712 | E73: 141.88 | F73: -124.1228829
B74: 44 | C74: 412.9171554 | D74: 18.16835484 | E74: 142.04 | F74: -123.8716452
B75: 45 | C75: 412.8779918 | D75: 18.57950963 | E75: 142.2 | F75: -123.6204904
B76: 46 | C76: 412.8387211 | D76: 18.99058117 | E76: 142.36 | F76: -123.3694188
B77: 47 | C77: 412.7993436 | D77: 19.40156915 | E77: 142.52 | F77: -123.1184309
B78: 48 | C78: 412.759859 | D78: 19.81247323 | E78: 142.68 | F78: -122.8675268
B79: 49 | C79: 412.7202674 | D79: 20.2232931 | E79: 142.84 | F79: -122.6167069
B80: 50 | C80: 412.6805689 | D80: 20.63402845 | E80: 143 | F80: -122.3659716
B81: 51 | C81: 412.6407634 | D81: 21.04467893 | E81: 143.16 | F81: -122.1153211
B82: 52 | C82: 412.6008509 | D82: 21.45524425 | E82: 143.32 | F82: -121.8647558
B83: 53 | C83: 412.5608314 | D83: 21.86572407 | E83: 143.48 | F83: -121.6142759
B84: 54 | C84: 412.520705 | D84: 22.27611807 | E84: 143.64 | F84: -121.3638819
B85: 55 | C85: 412.4804716 | D85: 22.68642594 | E85: 143.8 | F85: -121.1135741
B86: 56 | C86: 412.4401312 | D86: 23.09664734 | E86: 143.96 | F86: -120.8633527
B87: 57 | C87: 412.3996838 | D87: 23.50678197 | E87: 144.12 | F87: -120.613218
B88: 58 | C88: 412.3591294 | D88: 23.9168295 | E88: 144.28 | F88: -120.3631705
B89: 59 | C89: 412.318468 | D89: 24.32678961 | E89: 144.44 | F89: -120.1132104
B90: 60 | C90: 412.2776997 | D90: 24.73666198 | E90: 144.6 | F90: -119.863338
B91: 61 | C91: 412.2368244 | D91: 25.14644629 | E91: 144.76 | F91: -119.6135537
B92: 62 | C92: 412.1958421 | D92: 25.55614221 | E92: 144.92 | F92: -119.3638578
B93: 63 | C93: 412.1547528 | D93: 25.96574943 | E93: 145.08 | F93: -119.1142506
B94: 64 | C94: 412.1135566 | D94: 26.37526762 | E94: 145.24 | F94: -118.8647324
B95: 65 | C95: =$C$25*B95^2+$C$26*B95+$C$27 -> 412.0722534 | D95: =B95*C95/1000 -> 26.78469647 | E95: =COST(B95,$E$16,$E$20,$E$21,$D$20,$D$21,$D$22) -> 145.4 | F95: =D95-E95 -> -118.6153035
B96: 66 | C96: 412.0308432 | D96: 27.19403565 | E96: 145.56 | F96: -118.3659644
B97: 67 | C97: 411.989326 | D97: 27.60328484 | E97: 145.72 | F97: -118.1167152
B98: 68 | C98: 411.9477018 | D98: 28.01244372 | E98: 145.88 | F98: -117.8675563
B99: 69 | C99: 411.9059706 | D99: 28.42151197 | E99: 146.04 | F99: -117.618488
B100: 70 | C100: 411.8641325 | D100: 28.83048928 | E100: 146.2 | F100: -117.3695107
B101: 71 | C101: 411.8221874 | D101: 29.23937531 | E101: 146.36 | F101: -117.1206247
B102: 72 | C102: 411.7801353 | D102: 29.64816974 | E102: 146.52 | F102: -116.8718303
B103: 73 | C103: 411.7379762 | D103: 30.05687227 | E103: 146.68 | F103: -116.6231277
B104: 74 | C104: 411.6957102 | D104: 30.46548255 | E104: 146.84 | F104: -116.3745174
B105: 75 | C105: 411.6533372 | D105: 30.87400029 | E105: 147 | F105: -116.1259997
B106: 76 | C106: 411.6108572 | D106: 31.28242514 | E106: 147.16 | F106: -115.8775749
B107: 77 | C107: 411.5682702 | D107: 31.6907568 | E107: 147.32 | F107: -115.6292432
B108: 78 | C108: 411.5255762 | D108: 32.09899494 | E108: 147.48 | F108: -115.3810051
B109: 79 | C109: 411.4827752 | D109: 32.50713924 | E109: 147.64 | F109: -115.1328608
B110: 80 | C110: 411.4398673 | D110: 32.91518938 | E110: 147.8 | F110: -114.8848106
B111: 81 | C111: 411.3968524 | D111: 33.32314504 | E111: 147.96 | F111: -114.636855
B112: 82 | C112: 411.3537305 | D112: 33.7310059 | E112: 148.12 | F112: -114.3889941
B113: 83 | C113: 411.3105016 | D113: 34.13877164 | E113: 148.28 | F113: -114.1412284
B114: 84 | C114: 411.2671658 | D114: 34.54644193 | E114: 148.44 | F114: -113.8935581
B115: 85 | C115: 411.223723 | D115: 34.95401645 | E115: 148.6 | F115: -113.6459835
B116: 86 | C116: 411.1801731 | D116: 35.36149489 | E116: 148.76 | F116: -113.3985051
B117: 87 | C117: 411.1365164 | D117: 35.76887692 | E117: 148.92 | F117: -113.1511231
B118: 88 | C118: 411.0927526 | D118: 36.17616223 | E118: 149.08 | F118: -112.9038378
B119: 89 | C119: 411.0488818 | D119: 36.58335048 | E119: 149.24 | F119: -112.6566495
B120: 90 | C120: 411.0049041 | D120: 36.99044137 | E120: 149.4 | F120: -112.4095586
B121: 91 | C121: 410.9608194 | D121: 37.39743457 | E121: 149.56 | F121: -112.1625654
B122: 92 | C122: 410.9166277 | D122: 37.80432975 | E122: 149.72 | F122: -111.9156703
B123: 93 | C123: 410.872329 | D123: 38.2111266 | E123: 149.88 | F123: -111.6688734
B124: 94 | C124: 410.8279234 | D124: 38.6178248 | E124: 150.04 | F124: -111.4221752
B125: 95 | C125: 410.7834108 | D125: 39.02442402 | E125: 150.2 | F125: -111.175576
B126: 96 | C126: 410.7387911 | D126: 39.43092395 | E126: 150.36 | F126: -110.929076
B127: 97 | C127: 410.6940646 | D127: 39.83732426 | E127: 150.52 | F127: -110.6826757
B128: 98 | C128: 410.649231 | D128: 40.24362464 | E128: 150.68 | F128: -110.4363754
B129: 99 | C129: 410.6042904 | D129: 40.64982475 | E129: 150.84 | F129: -110.1901752
B130: 100 | C130: 410.5592429 | D130: 41.05592429 | E130: 151 | F130: -109.9440757
B131: 101 | C131: 410.5140884 | D131: 41.46192293 | E131: 151.16 | F131: -109.6980771
B132: 102 | C132: 410.4688269 | D132: 41.86782034 | E132: 151.32 | F132: -109.4521797
B133: 103 | C133: 410.4234584 | D133: 42.27361622 | E133: 151.48 | F133: -109.2063838
B134: 104 | C134: 410.377983 | D134: 42.67931023 | E134: 151.64 | F134: -108.9606898
B135: 105 | C135: 410.3324006 | D135: 43.08490206 | E135: 151.8 | F135: -108.7150979
B136: 106 | C136: 410.2867111 | D136: 43.49039138 | E136: 151.96 | F136: -108.4696086
B137: 107 | C137: 410.2409148 | D137: 43.89577788 | E137: 152.12 | F137: -108.2242221
B138: 108 | C138: 410.1950114 | D138: 44.30106123 | E138: 152.28 | F138: -107.9789388
B139: 109 | C139: 410.149001 | D139: 44.70624111 | E139: 152.44 | F139: -107.7337589
B140: 110 | C140: 410.1028837 | D140: 45.11131721 | E140: 152.6 | F140: -107.4886828
B141: 111 | C141: 410.0566594 | D141: 45.51628919 | E141: 152.76 | F141: -107.2437108
B142: 112 | C142: 410.0103281 | D142: 45.92115675 | E142: 152.92 | F142: -106.9988433
B143: 113 | C143: 409.9638898 | D143: 46.32591955 | E143: 153.08 | F143: -106.7540804
B144: 114 | C144: 409.9173446 | D144: 46.73057728 | E144: 153.24 | F144: -106.5094227
B145: 115 | C145: 409.8706924 | D145: 47.13512962 | E145: 153.4 | F145: -106.2648704
B146: 116 | C146: 409.8239332 | D146: 47.53957625 | E146: 153.56 | F146: -106.0204238
B147: 117 | C147: 409.777067 | D147: 47.94391683 | E147: 153.72 | F147: -105.7760832
B148: 118 | C148: 409.7300938 | D148: 48.34815107 | E148: 153.88 | F148: -105.5318489
B149: 119 | C149: 409.6830136 | D149: 48.75227862 | E149: 154.04 | F149: -105.2877214
B150: 120 | C150: 409.6358265 | D150: 49.15629918 | E150: 154.2 | F150: -105.0437008
B151: 121 | C151: 409.5885324 | D151: 49.56021242 | E151: 154.36 | F151: -104.7997876
B152: 122 | C152: 409.5411313 | D152: 49.96401802 | E152: 154.52 | F152: -104.555982
B153: 123 | C153: 409.4936232 | D153: 50.36771566 | E153: 154.68 | F153: -104.3122843
B154: 124 | C154: 409.4460082 | D154: 50.77130502 | E154: 154.84 | F154: -104.068695
B155: 125 | C155: 409.3982862 | D155: 51.17478577 | E155: 155 | F155: -103.8252142
B156: 126 | C156: 409.3504572 | D156: 51.5781576 | E156: 155.16 | F156: -103.5818424
B157: 127 | C157: 409.3025212 | D157: 51.98142019 | E157: 155.32 | F157: -103.3385798
B158: 128 | C158: 409.2544782 | D158: 52.38457321 | E158: 155.48 | F158: -103.0954268
B159: 129 | C159: =$C$25*B159^2+$C$26*B159+$C$27 -> 409.2063282 | D159: =B159*C159/1000 -> 52.78761634 | E159: =COST(B159,$E$16,$E$20,$E$21,$D$20,$D$21,$D$22) -> 155.64 | F159: =D159-E159 -> -102.8523837
B160: 130 | C160: 409.1580713 | D160: 53.19054927 | E160: 155.8 | F160: -102.6094507
B161: 131 | C161: 409.1097074 | D161: 53.59337167 | E161: 155.96 | F161: -102.3666283
B162: 132 | C162: 409.0612365 | D162: 53.99608322 | E162: 156.12 | F162: -102.1239168
B163: 133 | C163: 409.0126586 | D163: 54.3986836 | E163: 156.28 | F163: -101.8813164
B164: 134 | C164: 408.9639738 | D164: 54.80117249 | E164: 156.44 | F164: -101.6388275
B165: 135 | C165: 408.915182 | D165: 55.20354956 | E165: 156.6 | F165: -101.3964504
B166: 136 | C166: 408.8662832 | D166: 55.60581451 | E166: 156.76 | F166: -101.1541855
B167: 137 | C167: 408.8172774 | D167: 56.007967 | E167: 156.92 | F167: -100.912033
B168: 138 | C168: 408.7681646 | D168: 56.41000671 | E168: 157.08 | F168: -100.6699933
B169: 139 | C169: 408.7189448 | D169: 56.81193333 | E169: 157.24 | F169: -100.4280667
B170: 140 | C170: 408.6696181 | D170: 57.21374654 | E170: 157.4 | F170: -100.1862535
B171: 141 | C171: 408.6201844 | D171: 57.615446 | E171: 157.56 | F171: -99.944554
B172: 142 | C172: 408.5706437 | D172: 58.01703141 | E172: 157.72 | F172: -99.70296859
B173: 143 | C173: 408.520996 | D173: 58.41850243 | E173: 157.88 | F173: -99.46149757
B174: 144 | C174: 408.4712414 | D174: 58.81985876 | E174: 158.04 | F174: -99.22014124
B175: 145 | C175: 408.4213798 | D175: 59.22110007 | E175: 158.2 | F175: -98.97889993
B176: 146 | C176: 408.3714111 | D176: 59.62222603 | E176: 158.36 | F176: -98.73777397
B177: 147 | C177: 408.3213356 | D177: 60.02323633 | E177: 158.52 | F177: -98.49676367
B178: 148 | C178: 408.271153 | D178: 60.42413064 | E178: 158.68 | F178: -98.25586936
B179: 149 | C179: 408.2208634 | D179: 60.82490865 | E179: 158.84 | F179: -98.01509135
B180: 150 | C180: 408.1704669 | D180: 61.22557004 | E180: 159 | F180: -97.77442996
B181: 151 | C181: 408.1199634 | D181: 61.62611447 | E181: 159.16 | F181: -97.53388553
B182: 152 | C182: 408.0693529 | D182: 62.02654164 | E182: 159.32 | F182: -97.29345836
B183: 153 | C183: 408.0186354 | D183: 62.42685122 | E183: 159.48 | F183: -97.05314878
B184: 154 | C184: 407.967811 | D184: 62.82704289 | E184: 159.64 | F184: -96.81295711
B185: 155 | C185: 407.9168796 | D185: 63.22711633 | E185: 159.8 | F185: -96.57288367
B186: 156 | C186: 407.8658411 | D186: 63.62707122 | E186: 159.96 | F186: -96.33292878
B187: 157 | C187: 407.8146958 | D187: 64.02690723 | E187: 160.12 | F187: -96.09309277
B188: 158 | C188: 407.7634434 | D188: 64.42662406 | E188: 160.28 | F188: -95.85337594
B189: 159 | C189: 407.712084 | D189: 64.82622136 | E189: 160.44 | F189: -95.61377864
B190: 160 | C190: 407.6606177 | D190: 65.22569883 | E190: 160.6 | F190: -95.37430117
B191: 161 | C191: 407.6090444 | D191: 65.62505615 | E191: 160.76 | F191: -95.13494385
B192: 162 | C192: 407.5573641 | D192: 66.02429299 | E192: 160.92 | F192: -94.89570701
B193: 163 | C193: 407.5055768 | D193: 66.42340902 | E193: 161.08 | F193: -94.65659098
B194: 164 | C194: 407.4536826 | D194: 66.82240394 | E194: 161.24 | F194: -94.41759606
B195: 165 | C195: 407.4016814 | D195: 67.22127742 | E195: 161.4 | F195: -94.17872258
B196: 166 | C196: 407.3495731 | D196: 67.62002914 | E196: 161.56 | F196: -93.93997086
B197: 167 | C197: 407.297358 | D197: 68.01865878 | E197: 161.72 | F197: -93.70134122
B198: 168 | C198: 407.2450358 | D198: 68.41716601 | E198: 161.88 | F198: -93.46283399
B199: 169 | C199: 407.1926066 | D199: 68.81555052 | E199: 162.04 | F199: -93.22444948
B200: 170 | C200: 407.1400705 | D200: 69.21381199 | E200: 162.2 | F200: -92.98618801
B201: 171 | C201: 407.0874274 | D201: 69.61195009 | E201: 162.36 | F201: -92.74804991
B202: 172 | C202: 407.0346773 | D202: 70.0099645 | E202: 162.52 | F202: -92.5100355
B203: 173 | C203: 406.9818202 | D203: 70.4078549 | E203: 162.68 | F203: -92.2721451
B204: 174 | C204: 406.9288562 | D204: 70.80562098 | E204: 162.84 | F204: -92.03437902
B205: 175 | C205: 406.8757852 | D205: 71.2032624 | E205: 163 | F205: -91.7967376
B206: 176 | C206: 406.8226072 | D206: 71.60077886 | E206: 163.16 | F206: -91.55922114
B207: 177 | C207: 406.7693222 | D207: 71.99817002 | E207: 163.32 | F207: -91.32182998
... 2833 more rows

Sheet Data
B5: Potential national market: | D5: 350000000
B7: Test Markets
B8: Market Number | C8: Market Size | D8: Price | E8: Projected Yearly Sales (number of drives)
B9: 1 | C9: 144900 | D9: 265.95 | E9: 570
B10: 2 | C10: 4627600 | D10: 276.95 | E10: 17178
B11: 3 | C11: 1049800 | D11: 287.95 | E11: 3801
B12: 4 | C12: 2946500 | D12: 299.95 | E12: 9941
B13: 5 | C13: 5042300 | D13: 310.95 | E13: 15594
B14: 6 | C14: 3617600 | D14: 321.95 | E14: 10859
B16: Fixed Cost For The Year: | D16: 135000000
B18: Variable Costs
B19: Quantity | D19: Cost per drive
B20: First: | C20: 800000 | D20: 160
B21: Next: | C21: 400000 | D21: 128
B22: Further: | D22: 72
